[Event "Late-Titled-Tuesday-Blitz-March-26-2024"]
[Site "Chess.com"]
[Date "2024.03.26"]
[Round "10"]
[White "promen1999"]
[Black "Oleksandr_Bortnyk"]
[Result "1-0"]
[WhiteElo "2870"]
[BlackElo "3033"]
[TimeControl "180+1"]
[EndTime "15:54:17 PDT"]
[Termination "promen1999 won by resignation"]

1. d4 {[%clk 0:03:00.9]} 1... Nf6 {[%clk 0:02:59.1]} 2. c4 {[%clk 0:03:01]} 2...
b6 {[%clk 0:02:59.4]} 3. Nc3 {[%clk 0:03:00.5]} 3... Bb7 {[%clk 0:02:59.9]} 4.
Qc2 {[%clk 0:03:00.3]} 4... g6 {[%clk 0:02:59.8]} 5. e4 {[%clk 0:02:59.9]} 5...
d6 {[%clk 0:03:00.4]} 6. Nf3 {[%clk 0:02:59.1]} 6... Bg7 {[%clk 0:03:00.2]} 7.
Be2 {[%clk 0:02:57.7]} 7... O-O {[%clk 0:03:00.6]} 8. O-O {[%clk 0:02:57.6]}
8... c5 {[%clk 0:03:01.2]} 9. d5 {[%clk 0:02:57.2]} 9... e6 {[%clk 0:03:01.8]}
10. a3 {[%clk 0:02:31.4]} 10... exd5 {[%clk 0:03:00.9]} 11. cxd5 {[%clk
0:02:30]} 11... Re8 {[%clk 0:02:58.4]} 12. Re1 {[%clk 0:02:28.4]} 12... Na6
{[%clk 0:02:57.1]} 13. Bb5 {[%clk 0:02:27]} 13... Re7 {[%clk 0:02:56.2]} 14. Bg5
{[%clk 0:02:23.8]} 14... Nc7 {[%clk 0:02:55.6]} 15. e5 {[%clk 0:01:55.2]} 15...
dxe5 {[%clk 0:02:27.8]} 16. d6 {[%clk 0:01:54.1]} 16... Qxd6 {[%clk 0:02:22.4]}
17. Rad1 {[%clk 0:01:54.7]} 17... Qe6 {[%clk 0:01:59.6]} 18. Rxe5 {[%clk
0:01:14.3]} 18... Qg4 {[%clk 0:01:59.1]} 19. h3 {[%clk 0:01:09.3]} 19... Bxf3
{[%clk 0:01:56.9]} 20. hxg4 {[%clk 0:01:07.9]} 20... Bxd1 {[%clk 0:01:57.2]} 21.
Qxd1 {[%clk 0:01:07.4]} 21... Rxe5 {[%clk 0:01:55.6]} 22. Bf4 {[%clk 0:01:05.5]}
22... Re7 {[%clk 0:01:41.2]} 23. Bxc7 {[%clk 0:00:53.6]} 23... Rxc7 {[%clk
0:01:39.1]} 24. g5 {[%clk 0:00:53.8]} 24... Nh5 {[%clk 0:00:52.4]} 25. Nd5
{[%clk 0:00:53.1]} 25... Rd8 {[%clk 0:00:48.6]} 26. Ne7+ {[%clk 0:00:52.4]}
26... Rxe7 {[%clk 0:00:49]} 27. Qxd8+ {[%clk 0:00:52.3]} 27... Bf8 {[%clk
0:00:49.9]} 28. g3 {[%clk 0:00:49.4]} 28... Ng7 {[%clk 0:00:47.2]} 29. Bc4
{[%clk 0:00:45.3]} 29... Nf5 {[%clk 0:00:45]} 30. Kg2 {[%clk 0:00:39.4]} 30...
Nd4 {[%clk 0:00:44.1]} 31. b4 {[%clk 0:00:37.4]} 31... Nc6 {[%clk 0:00:40.8]}
32. Qd5 {[%clk 0:00:33.2]} 32... Rc7 {[%clk 0:00:35.4]} 33. bxc5 {[%clk
0:00:29.8]} 33... Bxc5 {[%clk 0:00:34.4]} 34. Bb5 {[%clk 0:00:28.5]} 34... Nd4
{[%clk 0:00:08]} 35. Qd8+ {[%clk 0:00:27.2]} 35... Kg7 {[%clk 0:00:08.2]} 36.
Qxc7 {[%clk 0:00:26.7]} 36... Nxb5 {[%clk 0:00:09]} 37. Qe5+ {[%clk 0:00:26.7]}
37... Kg8 {[%clk 0:00:09.7]} 38. Qe8+ {[%clk 0:00:26.4]} 38... Kg7 {[%clk
0:00:07.5]} 39. Qxb5 {[%clk 0:00:27.3]} 39... Bxa3 {[%clk 0:00:07.5]} 40. Qa6
{[%clk 0:00:26.8]} 40... Be7 {[%clk 0:00:06.3]} 41. f4 {[%clk 0:00:25.9]} 41...
h6 {[%clk 0:00:05.7]} 42. Qxa7 {[%clk 0:00:25]} 1-0

[Event "Late-Titled-Tuesday-Blitz-March-26-2024"]
[Site "Chess.com"]
[Date "2024.03.26"]
[Round "10"]
[White "ExtremeLearner"]
[Black "GoltsevDmitry2000"]
[Result "0-1"]
[WhiteElo "2568"]
[BlackElo "2798"]
[TimeControl "180+1"]
[EndTime "15:54:17 PDT"]
[Termination "GoltsevDmitry2000 won by resignation"]

1. d4 {[%clk 0:02:59.5]} 1... e6 {[%clk 0:02:59.7]} 2. c4 {[%clk 0:02:57.5]}
2... Nf6 {[%clk 0:02:58.3]} 3. Nc3 {[%clk 0:02:57.4]} 3... Bb4 {[%clk
0:02:58.1]} 4. e3 {[%clk 0:02:56.7]} 4... Bxc3+ {[%clk 0:02:57.2]} 5. bxc3
{[%clk 0:02:56]} 5... b6 {[%clk 0:02:58]} 6. Bd3 {[%clk 0:02:48.8]} 6... Bb7
{[%clk 0:02:53.1]} 7. f3 {[%clk 0:02:48.8]} 7... d6 {[%clk 0:02:53.3]} 8. Ne2
{[%clk 0:02:46.9]} 8... Nbd7 {[%clk 0:02:53.6]} 9. O-O {[%clk 0:02:46]} 9... a5
{[%clk 0:02:52.4]} 10. Ng3 {[%clk 0:02:43.9]} 10... O-O {[%clk 0:02:52.6]} 11.
e4 {[%clk 0:02:37.3]} 11... Qe7 {[%clk 0:02:47.5]} 12. f4 {[%clk 0:02:35.1]}
12... Rfd8 {[%clk 0:02:31.9]} 13. Qe2 {[%clk 0:02:20.2]} 13... Nf8 {[%clk
0:02:22.8]} 14. Be3 {[%clk 0:02:17.1]} 14... Rac8 {[%clk 0:02:20.2]} 15. Rae1
{[%clk 0:02:16.3]} 15... c5 {[%clk 0:02:18.7]} 16. e5 {[%clk 0:02:01.6]} 16...
Ne8 {[%clk 0:02:16]} 17. f5 {[%clk 0:01:43.2]} 17... dxe5 {[%clk 0:02:14]} 18.
dxe5 {[%clk 0:01:41.7]} 18... Qh4 {[%clk 0:02:12.8]} 19. Rf4 {[%clk 0:01:35.1]}
19... Qe7 {[%clk 0:01:59]} 20. f6 {[%clk 0:01:32]} 20... Qd7 {[%clk 0:01:58]}
21. Bc2 {[%clk 0:01:16.3]} 21... Ng6 {[%clk 0:01:54]} 22. fxg7 {[%clk
0:00:54.9]} 22... Nxg7 {[%clk 0:01:06.4]} 23. Nh5 {[%clk 0:00:33.7]} 23... Nxh5
{[%clk 0:00:53.2]} 24. Qxh5 {[%clk 0:00:34.6]} 24... Qc6 {[%clk 0:00:36]} 25.
Rg4 {[%clk 0:00:30.3]} 25... Rd7 {[%clk 0:00:35.8]} 26. Bg5 {[%clk 0:00:22.2]}
26... Rf8 {[%clk 0:00:26]} 27. Bf6 {[%clk 0:00:22.2]} 27... Rd2 {[%clk
0:00:19.2]} 28. Qxh7+ {[%clk 0:00:22.2]} 28... Kxh7 {[%clk 0:00:20.1]} 29. Rh4+
{[%clk 0:00:22.8]} 29... Kg8 {[%clk 0:00:20.5]} 30. Be4 {[%clk 0:00:15.3]} 30...
Qd7 {[%clk 0:00:16.7]} 31. Bxg6 {[%clk 0:00:13]} 31... fxg6 {[%clk 0:00:16.5]}
32. Rh8+ {[%clk 0:00:12.6]} 32... Kf7 {[%clk 0:00:17]} 33. Rh7+ {[%clk
0:00:13.2]} 33... Ke8 {[%clk 0:00:17.5]} 34. Rxd7 {[%clk 0:00:13.8]} 34... Kxd7
{[%clk 0:00:18.3]} 0-1

[Event "Late-Titled-Tuesday-Blitz-March-26-2024"]
[Site "Chess.com"]
[Date "2024.03.26"]
[Round "10"]
[White "N_Mullodzhanov"]
[Black "ChessSwole"]
[Result "0-1"]
[WhiteElo "2547"]
[BlackElo "2675"]
[TimeControl "180+1"]
[EndTime "15:54:17 PDT"]
[Termination "ChessSwole won by checkmate"]

1. e4 {[%clk 0:03:00.9]} 1... d6 {[%clk 0:03:00.1]} 2. d4 {[%clk 0:03:01]} 2...
Nf6 {[%clk 0:03:00.5]} 3. Nc3 {[%clk 0:03:00.9]} 3... g6 {[%clk 0:03:01.1]} 4.
Nf3 {[%clk 0:03:00.9]} 4... Bg7 {[%clk 0:03:01]} 5. h3 {[%clk 0:02:59.6]} 5...
O-O {[%clk 0:02:59.6]} 6. Be3 {[%clk 0:02:59.7]} 6... a6 {[%clk 0:02:51.3]} 7.
Qd2 {[%clk 0:02:59.9]} 7... b5 {[%clk 0:02:51.4]} 8. Bd3 {[%clk 0:02:56.8]} 8...
Bb7 {[%clk 0:02:47.8]} 9. d5 {[%clk 0:02:53.7]} 9... c6 {[%clk 0:02:42.3]} 10.
Bh6 {[%clk 0:02:39.1]} 10... cxd5 {[%clk 0:02:22.5]} 11. Nxd5 {[%clk 0:02:32.3]}
11... Nbd7 {[%clk 0:01:32.2]} 12. Bxg7 {[%clk 0:01:54.7]} 12... Kxg7 {[%clk
0:01:33.1]} 13. O-O {[%clk 0:01:52]} 13... Nc5 {[%clk 0:01:24.3]} 14. Nxf6
{[%clk 0:01:50]} 14... exf6 {[%clk 0:01:25.2]} 15. Rfe1 {[%clk 0:01:44]} 15...
Re8 {[%clk 0:01:22.8]} 16. Qf4 {[%clk 0:01:41.4]} 16... d5 {[%clk 0:01:02.2]}
17. Rad1 {[%clk 0:01:09.5]} 17... dxe4 {[%clk 0:00:51.3]} 18. Bxb5 {[%clk
0:00:50.5]} 18... Qb8 {[%clk 0:00:37.7]} 19. Rd6 {[%clk 0:00:35.6]} 19... Re6
{[%clk 0:00:30.3]} 20. Red1 {[%clk 0:00:29.3]} 20... exf3 {[%clk 0:00:20.2]} 21.
Bc4 {[%clk 0:00:25.4]} 21... Rxd6 {[%clk 0:00:17.9]} 22. Qxd6 {[%clk 0:00:13.6]}
22... Qxd6 {[%clk 0:00:17.7]} 23. Rxd6 {[%clk 0:00:14.5]} 23... fxg2 {[%clk
0:00:18.5]} 24. b4 {[%clk 0:00:13.7]} 24... Re8 {[%clk 0:00:17.1]} 25. Rd1
{[%clk 0:00:10]} 25... Na4 {[%clk 0:00:16.2]} 26. Bxf7 {[%clk 0:00:08]} 26...
Kxf7 {[%clk 0:00:15.6]} 27. c4 {[%clk 0:00:04.9]} 27... Nc3 {[%clk 0:00:14.2]}
28. Ra1 {[%clk 0:00:04.8]} 28... Ne2+ {[%clk 0:00:14.5]} 29. Kh2 {[%clk
0:00:04.9]} 29... g1=Q+ {[%clk 0:00:15.2]} 30. Rxg1 {[%clk 0:00:05.1]} 30...
Nxg1 {[%clk 0:00:16.1]} 31. b5 {[%clk 0:00:04.7]} 31... axb5 {[%clk 0:00:15.9]}
32. Kxg1 {[%clk 0:00:04.4]} 32... bxc4 {[%clk 0:00:16.1]} 33. f4 {[%clk
0:00:04.8]} 33... c3 {[%clk 0:00:16.7]} 34. f5 {[%clk 0:00:05.4]} 34... g5
{[%clk 0:00:17.2]} 35. h4 {[%clk 0:00:04.7]} 35... c2 {[%clk 0:00:18.1]} 36. h5
{[%clk 0:00:05]} 36... c1=Q+ {[%clk 0:00:19]} 37. Kf2 {[%clk 0:00:04.5]} 37...
Qf4+ {[%clk 0:00:19.1]} 38. Kg1 {[%clk 0:00:04.3]} 38... Re1# {[%clk 0:00:19.8]}
0-1

[Event "Late-Titled-Tuesday-Blitz-March-26-2024"]
[Site "Chess.com"]
[Date "2024.03.26"]
[Round "10"]
[White "newauto"]
[Black "AntonovaNadezhda"]
[Result "1-0"]
[WhiteElo "2208"]
[BlackElo "2144"]
[TimeControl "180+1"]
[EndTime "15:54:17 PDT"]
[Termination "newauto won by resignation"]

1. d4 {[%clk 0:03:00.9]} 1... Nf6 {[%clk 0:02:58.9]} 2. Nf3 {[%clk 0:03:01.5]}
2... g6 {[%clk 0:02:59.3]} 3. Bg5 {[%clk 0:03:01.8]} 3... Bg7 {[%clk 0:03:00.1]}
4. Nbd2 {[%clk 0:03:01.2]} 4... O-O {[%clk 0:03:00.6]} 5. e4 {[%clk 0:03:01.4]}
5... c5 {[%clk 0:03:01.1]} 6. c3 {[%clk 0:03:00.8]} 6... cxd4 {[%clk 0:03:00.7]}
7. cxd4 {[%clk 0:03:00.8]} 7... d6 {[%clk 0:03:00.4]} 8. Bd3 {[%clk 0:02:59.6]}
8... a6 {[%clk 0:03:00.4]} 9. O-O {[%clk 0:02:59.5]} 9... b5 {[%clk 0:03:00.5]}
10. Re1 {[%clk 0:02:59]} 10... Bb7 {[%clk 0:03:00.7]} 11. Rc1 {[%clk 0:02:54.6]}
11... Nc6 {[%clk 0:02:58.3]} 12. h3 {[%clk 0:02:39.1]} 12... h6 {[%clk
0:02:58.2]} 13. Be3 {[%clk 0:02:38.7]} 13... Rc8 {[%clk 0:02:46.7]} 14. a3
{[%clk 0:02:37.6]} 14... e5 {[%clk 0:02:43.2]} 15. Bb1 {[%clk 0:02:32]} 15...
Nd7 {[%clk 0:02:38.4]} 16. d5 {[%clk 0:02:19.8]} 16... Ne7 {[%clk 0:02:37.3]}
17. Rxc8 {[%clk 0:02:16.1]} 17... Bxc8 {[%clk 0:02:35.8]} 18. Nh2 {[%clk
0:02:06.2]} 18... f5 {[%clk 0:02:33.2]} 19. f3 {[%clk 0:02:05.7]} 19... f4
{[%clk 0:02:27.1]} 20. Bf2 {[%clk 0:02:05.3]} 20... h5 {[%clk 0:02:27.3]} 21. b4
{[%clk 0:02:03.8]} 21... Nf6 {[%clk 0:02:24.3]} 22. Bd3 {[%clk 0:01:58.9]} 22...
g5 {[%clk 0:02:23.9]} 23. Be2 {[%clk 0:01:50.8]} 23... Qe8 {[%clk 0:02:18.8]}
24. Nb3 {[%clk 0:01:45.4]} 24... Qg6 {[%clk 0:02:17.8]} 25. Na5 {[%clk
0:01:44.5]} 25... g4 {[%clk 0:02:14.3]} 26. hxg4 {[%clk 0:01:28.3]} 26... hxg4
{[%clk 0:02:14.2]} 27. Nxg4 {[%clk 0:01:27]} 27... Nxg4 {[%clk 0:01:49.1]} 28.
fxg4 {[%clk 0:01:26.1]} 28... Bf6 {[%clk 0:01:29.3]} 29. Bf3 {[%clk 0:01:20]}
29... Kf7 {[%clk 0:01:27.9]} 30. Kf1 {[%clk 0:00:51.2]} 30... Rh8 {[%clk
0:01:25.3]} 31. Ke2 {[%clk 0:00:47.8]} 31... Bxg4 {[%clk 0:01:23.4]} 32. Kd3
{[%clk 0:00:41.9]} 32... Bxf3 {[%clk 0:01:15.9]} 33. gxf3 {[%clk 0:00:32.1]}
33... Nxd5 {[%clk 0:01:15.6]} 34. Rg1 {[%clk 0:00:31.3]} 34... Qh7 {[%clk
0:01:14.3]} 35. Qb3 {[%clk 0:00:29.8]} 35... Rc8 {[%clk 0:01:02]} 36. Qxd5+
{[%clk 0:00:20.5]} 36... Ke7 {[%clk 0:01:02.3]} 37. Nc6+ {[%clk 0:00:20.4]}
37... Kd7 {[%clk 0:01:01.6]} 38. Na5 {[%clk 0:00:11.8]} 38... Qh2 {[%clk
0:00:55.7]} 39. Qf7+ {[%clk 0:00:11.2]} 39... Be7 {[%clk 0:00:54.2]} 40. Qf5+
{[%clk 0:00:11.5]} 40... Kc7 {[%clk 0:00:40.5]} 41. Rc1+ {[%clk 0:00:10.5]} 1-0

[Event "Late-Titled-Tuesday-Blitz-March-26-2024"]
[Site "Chess.com"]
[Date "2024.03.26"]
[Round "10"]
[White "Laico"]
[Black "TheMagician"]
[Result "1/2-1/2"]
[WhiteElo "2392"]
[BlackElo "2276"]
[TimeControl "180+1"]
[EndTime "15:54:23 PDT"]
[Termination "Game drawn by repetition"]

1. e4 {[%clk 0:00:30.6]} 1... c5 {[%clk 0:02:57.1]} 2. Nc3 {[%clk 0:00:29.5]}
2... e6 {[%clk 0:02:55.3]} 3. f4 {[%clk 0:00:28.7]} 3... a6 {[%clk 0:02:54.1]}
4. Nf3 {[%clk 0:00:29.6]} 4... Nc6 {[%clk 0:02:54]} 5. g3 {[%clk 0:00:30.1]}
5... d5 {[%clk 0:02:52.9]} 6. Bg2 {[%clk 0:00:30.4]} 6... d4 {[%clk 0:02:48]} 7.
Nb1 {[%clk 0:00:30.3]} 7... f6 {[%clk 0:02:43.5]} 8. d3 {[%clk 0:00:30.1]} 8...
Bd6 {[%clk 0:02:43.3]} 9. O-O {[%clk 0:00:29.1]} 9... e5 {[%clk 0:02:42.1]} 10.
fxe5 {[%clk 0:00:28.5]} 10... Nxe5 {[%clk 0:02:41.4]} 11. Nxe5 {[%clk
0:00:26.3]} 11... Bxe5 {[%clk 0:02:41.6]} 12. Bf4 {[%clk 0:00:25.7]} 12... Qc7
{[%clk 0:02:39.4]} 13. Nd2 {[%clk 0:00:24.2]} 13... Ne7 {[%clk 0:02:39.2]} 14.
Nc4 {[%clk 0:00:23.4]} 14... Nc6 {[%clk 0:02:32]} 15. Bxe5 {[%clk 0:00:20.5]}
15... Nxe5 {[%clk 0:02:31.1]} 16. Nxe5 {[%clk 0:00:19.8]} 16... Qxe5 {[%clk
0:02:29.5]} 17. Qd2 {[%clk 0:00:15.9]} 17... O-O {[%clk 0:02:27.8]} 18. Qf4
{[%clk 0:00:15.9]} 18... Be6 {[%clk 0:02:24.7]} 19. Qxe5 {[%clk 0:00:15.7]}
19... fxe5 {[%clk 0:02:24.5]} 20. a3 {[%clk 0:00:14.9]} 20... Rxf1+ {[%clk
0:02:23.5]} 21. Rxf1 {[%clk 0:00:13.6]} 21... b5 {[%clk 0:02:23.5]} 22. h4
{[%clk 0:00:10.6]} 22... c4 {[%clk 0:02:22.4]} 23. Rf2 {[%clk 0:00:10.7]} 23...
cxd3 {[%clk 0:02:19.3]} 24. cxd3 {[%clk 0:00:11.6]} 24... Rc8 {[%clk 0:02:18.8]}
25. Kh2 {[%clk 0:00:11.6]} 25... Rc1 {[%clk 0:02:16.9]} 26. Bh3 {[%clk
0:00:11.9]} 26... Bxh3 {[%clk 0:02:16.3]} 27. Kxh3 {[%clk 0:00:12.8]} 27... Rd1
{[%clk 0:02:07.3]} 28. Rf5 {[%clk 0:00:09.4]} 28... Rxd3 {[%clk 0:02:06.6]} 29.
Rxe5 {[%clk 0:00:09.7]} 29... Rb3 {[%clk 0:01:58.5]} 30. Rd5 {[%clk 0:00:08.4]}
30... d3 {[%clk 0:01:58]} 31. Rd7 {[%clk 0:00:08.5]} 31... Rxb2 {[%clk
0:01:49.9]} 32. Rxd3 {[%clk 0:00:07.6]} 32... Re2 {[%clk 0:01:46.8]} 33. Rd6
{[%clk 0:00:07.6]} 33... Rxe4 {[%clk 0:01:46.5]} 34. Rxa6 {[%clk 0:00:07.5]}
34... Kf7 {[%clk 0:01:42.1]} 35. Ra5 {[%clk 0:00:07.7]} 35... b4 {[%clk
0:01:32.7]} 36. Ra4 {[%clk 0:00:07]} 36... h5 {[%clk 0:01:15.3]} 37. Rxb4 {[%clk
0:00:06.3]} 37... Re3 {[%clk 0:01:14.8]} 38. a4 {[%clk 0:00:06.6]} 38... Ra3
{[%clk 0:01:14.6]} 39. Kg2 {[%clk 0:00:03.3]} 39... g5 {[%clk 0:01:09.5]} 40.
hxg5 {[%clk 0:00:03]} 40... Kg6 {[%clk 0:01:09.7]} 41. Rb6+ {[%clk 0:00:02.1]}
41... Kxg5 {[%clk 0:01:09.8]} 42. Rb5+ {[%clk 0:00:03]} 42... Kg4 {[%clk
0:01:09.5]} 43. Rb4+ {[%clk 0:00:03.4]} 43... Kg5 {[%clk 0:01:09.9]} 44. Kh3
{[%clk 0:00:03.9]} 44... Ra1 {[%clk 0:01:05.7]} 45. Rb5+ {[%clk 0:00:03.9]}
45... Kg6 {[%clk 0:01:06.1]} 46. a5 {[%clk 0:00:04.8]} 46... Ra2 {[%clk
0:01:03.7]} 47. Rc5 {[%clk 0:00:03.5]} 47... Kh6 {[%clk 0:01:02.3]} 48. Rc6+
{[%clk 0:00:03.8]} 48... Kg5 {[%clk 0:01:02.5]} 49. a6 {[%clk 0:00:04.7]} 49...
Kf5 {[%clk 0:00:59.7]} 50. Rb6 {[%clk 0:00:04.4]} 50... Kg5 {[%clk 0:00:59.7]}
51. Rb5+ {[%clk 0:00:04.4]} 51... Kg6 {[%clk 0:00:59.6]} 52. Rb6+ {[%clk
0:00:04.2]} 52... Kg5 {[%clk 0:00:59.9]} 53. Rb5+ {[%clk 0:00:04.3]} 53... Kg6
{[%clk 0:01:00.3]} 54. Rb6+ {[%clk 0:00:04.2]} 54... Kg5 {[%clk 0:01:00.9]}
1/2-1/2

[Event "Late-Titled-Tuesday-Blitz-March-26-2024"]
[Site "Chess.com"]
[Date "2024.03.26"]
[Round "10"]
[White "katharinareinecke"]
[Black "cthake"]
[Result "1-0"]
[WhiteElo "1997"]
[BlackElo "1776"]
[TimeControl "180+1"]
[EndTime "15:54:24 PDT"]
[Termination "katharinareinecke won on time"]

1. d4 {[%clk 0:03:00.9]} 1... d5 {[%clk 0:02:59.1]} 2. c4 {[%clk 0:02:52.9]}
2... c6 {[%clk 0:02:59.2]} 3. Nf3 {[%clk 0:02:52.7]} 3... Nf6 {[%clk 0:02:58.4]}
4. g3 {[%clk 0:02:52.8]} 4... e6 {[%clk 0:02:57.5]} 5. Bg2 {[%clk 0:02:52.9]}
5... Nbd7 {[%clk 0:02:53.7]} 6. O-O {[%clk 0:02:52.8]} 6... Be7 {[%clk
0:02:52.9]} 7. Nc3 {[%clk 0:02:52.2]} 7... O-O {[%clk 0:02:52.3]} 8. b3 {[%clk
0:02:50.8]} 8... b6 {[%clk 0:02:48.6]} 9. Bb2 {[%clk 0:02:49]} 9... Ba6 {[%clk
0:02:42.3]} 10. Nd2 {[%clk 0:02:47.2]} 10... Rc8 {[%clk 0:02:33.7]} 11. Re1
{[%clk 0:02:45.2]} 11... b5 {[%clk 0:02:23.9]} 12. c5 {[%clk 0:02:43.4]} 12...
Re8 {[%clk 0:02:17]} 13. b4 {[%clk 0:02:41.8]} 13... e5 {[%clk 0:02:03.1]} 14.
dxe5 {[%clk 0:02:37.8]} 14... Nxe5 {[%clk 0:02:02.9]} 15. e4 {[%clk 0:02:01.3]}
15... dxe4 {[%clk 0:01:58.8]} 16. Ncxe4 {[%clk 0:01:55.2]} 16... Nc4 {[%clk
0:01:49.4]} 17. Nxc4 {[%clk 0:01:53.9]} 17... bxc4 {[%clk 0:01:48.8]} 18. Nd6
{[%clk 0:01:44.5]} 18... Bxd6 {[%clk 0:01:38.9]} 19. Bxf6 {[%clk 0:01:23.1]}
19... Rxe1+ {[%clk 0:01:26.7]} 20. Qxe1 {[%clk 0:01:23.1]} 20... Qxf6 {[%clk
0:01:24.7]} 21. cxd6 {[%clk 0:01:20.7]} 21... Qxd6 {[%clk 0:01:24.6]} 22. Rd1
{[%clk 0:01:15.6]} 22... Qc7 {[%clk 0:01:13]} 23. Qe4 {[%clk 0:01:03.2]} 23...
Bb5 {[%clk 0:00:54.2]} 24. a3 {[%clk 0:00:59.7]} 24... h6 {[%clk 0:00:43.4]} 25.
Bf1 {[%clk 0:00:58.6]} 25... Rd8 {[%clk 0:00:39.4]} 26. Rxd8+ {[%clk 0:00:56.8]}
26... Qxd8 {[%clk 0:00:39.5]} 27. Bxc4 {[%clk 0:00:54.9]} 27... Qd1+ {[%clk
0:00:37.9]} 28. Kg2 {[%clk 0:00:53.4]} 28... Bxc4 {[%clk 0:00:18.5]} 29. Qxc4
{[%clk 0:00:54.3]} 29... Qd6 {[%clk 0:00:16.9]} 30. h3 {[%clk 0:00:50.1]} 30...
Kf8 {[%clk 0:00:16.6]} 31. Qc3 {[%clk 0:00:42.4]} 31... Qd5+ {[%clk 0:00:16.3]}
32. Kh2 {[%clk 0:00:40.4]} 32... a6 {[%clk 0:00:15.1]} 33. Qe3 {[%clk
0:00:40.2]} 33... Qd6 {[%clk 0:00:08.6]} 34. Qa7 {[%clk 0:00:39.4]} 34... Qd3
{[%clk 0:00:06.4]} 35. Qa8+ {[%clk 0:00:36.4]} 35... Ke7 {[%clk 0:00:06.2]} 36.
Qxc6 {[%clk 0:00:36]} 36... Qxa3 {[%clk 0:00:06.2]} 37. Qc5+ {[%clk 0:00:34.9]}
37... Ke8 {[%clk 0:00:05.1]} 38. Qc6+ {[%clk 0:00:34.5]} 38... Ke7 {[%clk
0:00:05.1]} 39. Qb7+ {[%clk 0:00:34.5]} 39... Ke8 {[%clk 0:00:04.8]} 40. Kg2
{[%clk 0:00:34.4]} 40... Qa4 {[%clk 0:00:01.4]} 41. Qc8+ {[%clk 0:00:32.2]}
41... Ke7 {[%clk 0:00:01.3]} 42. Qc5+ {[%clk 0:00:32.1]} 42... Ke8 {[%clk
0:00:01.3]} 43. Qd4 {[%clk 0:00:31.2]} 1-0

[Event "Late-Titled-Tuesday-Blitz-March-26-2024"]
[Site "Chess.com"]
[Date "2024.03.26"]
[Round "10"]
[White "BardArtem"]
[Black "maximnovik"]
[Result "1-0"]
[WhiteElo "2823"]
[BlackElo "2589"]
[TimeControl "180+1"]
[EndTime "15:54:29 PDT"]
[Termination "BardArtem won on time"]

1. e4 {[%clk 0:02:58.3]} 1... c6 {[%clk 0:03:00]} 2. Nf3 {[%clk 0:02:57.5]} 2...
d5 {[%clk 0:03:00.9]} 3. exd5 {[%clk 0:02:58.4]} 3... cxd5 {[%clk 0:03:01.1]} 4.
Ne5 {[%clk 0:02:59]} 4... Nf6 {[%clk 0:03:00.6]} 5. d4 {[%clk 0:02:59.1]} 5...
g6 {[%clk 0:03:00.9]} 6. c3 {[%clk 0:02:59.2]} 6... Bg7 {[%clk 0:03:01.4]} 7.
Nd2 {[%clk 0:02:59.8]} 7... O-O {[%clk 0:03:01.5]} 8. Ndf3 {[%clk 0:03:00.2]}
8... Nc6 {[%clk 0:03:01.9]} 9. Be2 {[%clk 0:02:59.3]} 9... Ne4 {[%clk
0:03:00.3]} 10. O-O {[%clk 0:02:57.3]} 10... f6 {[%clk 0:03:00.1]} 11. Nxc6
{[%clk 0:02:51.3]} 11... bxc6 {[%clk 0:03:00.4]} 12. Bf4 {[%clk 0:02:48.2]}
12... Re8 {[%clk 0:02:55.4]} 13. Re1 {[%clk 0:02:48]} 13... e5 {[%clk
0:02:54.8]} 14. Be3 {[%clk 0:02:48.4]} 14... Rb8 {[%clk 0:02:50.8]} 15. Qc1
{[%clk 0:02:43.2]} 15... a5 {[%clk 0:02:46.2]} 16. c4 {[%clk 0:02:39.4]} 16...
Be6 {[%clk 0:02:15.1]} 17. Rd1 {[%clk 0:02:34.2]} 17... Qe7 {[%clk 0:02:06.7]}
18. Qc2 {[%clk 0:02:22.8]} 18... Qb4 {[%clk 0:01:59]} 19. Rab1 {[%clk
0:01:56.5]} 19... Bf5 {[%clk 0:01:52.3]} 20. Bd3 {[%clk 0:01:47.4]} 20... Bg4
{[%clk 0:01:23.2]} 21. a3 {[%clk 0:01:18.4]} 21... Qb7 {[%clk 0:01:14.7]} 22. b4
{[%clk 0:01:11.6]} 22... axb4 {[%clk 0:01:02.9]} 23. Rxb4 {[%clk 0:01:10.3]}
23... Qa8 {[%clk 0:00:38]} 24. Rxb8 {[%clk 0:00:59.8]} 24... Qxb8 {[%clk
0:00:36]} 25. Bxe4 {[%clk 0:00:46.2]} 25... dxe4 {[%clk 0:00:35.2]} 26. Qxe4
{[%clk 0:00:47.1]} 26... f5 {[%clk 0:00:30.9]} 27. Qxc6 {[%clk 0:00:47.3]} 27...
e4 {[%clk 0:00:30.5]} 28. Ng5 {[%clk 0:00:47.7]} 28... h6 {[%clk 0:00:19.4]} 29.
Bf4 {[%clk 0:00:23.7]} 29... Qc8 {[%clk 0:00:15.5]} 30. Qd5+ {[%clk 0:00:20.7]}
30... Kh8 {[%clk 0:00:14.8]} 31. Nf7+ {[%clk 0:00:21.3]} 31... Kh7 {[%clk
0:00:14.9]} 32. Nd6 {[%clk 0:00:21.8]} 32... Qd8 {[%clk 0:00:11.5]} 33. Rb1
{[%clk 0:00:18.3]} 33... Rf8 {[%clk 0:00:10.3]} 34. Rb7 {[%clk 0:00:17.8]} 34...
Qa8 {[%clk 0:00:09]} 35. Be5 {[%clk 0:00:14]} 35... Rg8 {[%clk 0:00:08.4]} 36.
Rxg7+ {[%clk 0:00:13.2]} 36... Rxg7 {[%clk 0:00:08.4]} 37. Qxa8 {[%clk
0:00:13.3]} 1-0